bitfinex/quotes_ETHUSD_20250318
["timestamp","ask_amount","ask_price","bid_price","bid_amount"]
[1742325633541,2.74199823,1900.3,1900.2,0.10826076]
[1742325633893,5.053,1900.5,1900.2,5.37061076]
[1742325634132,2.74199823,1900.4,1900.2,5.37061076]
[1742325634923,2.74199823,1900.4,1900.2,0.10826076]
[1742325635900,8.00404823,1900.4,1900.2,0.10826076]
[1742325636625,8.76214823,1900.4,1900.2,0.10826076]
[1742325636873,5.26232,1900.3,1900.2,0.10826076]
[1742325637034,10.52481,1900.3,1900.0,3.0]
[1742325637210,2.74199823,1900.1,1900.0,3.0]
[1742325637535,8.00487823,1900.1,1900.0,3.0]
[1742325637744,8.75697823,1900.1,1900.0,3.0]
[1742325639355,3.49409823,1900.1,1900.0,3.0]
[1742325640139,8.75697823,1900.1,1900.0,3.0]
[1742325640302,5.26315,1900.0,1899.9,6.14]
[1742325640510,8.75697823,1900.1,1899.6,1.07914693]
[1742325640720,2.74199823,1899.8,1899.6,1.07914693]
[1742325640920,2.74199823,1899.8,1899.6,9.34338693]
[1742325641151,2.74199823,1899.8,1899.6,8.26424]
[1742325641533,2.74199823,1899.8,1899.6,5.26415]
[1742325642233,2.74199823,1899.8,1899.7,3.0]
[1742325642635,0.8154,1899.7,1899.5,3.0]
[1742325642835,2.74199823,1899.6,1899.5,3.0]
[1742325643221,2.74199823,1899.6,1899.5,3.08647262]
[1742325644175,8.00625823,1899.6,1899.5,0.08647262]
[1742325644540,8.00625823,1899.6,1899.2,10.53043]
[1742325644852,10.52877,1899.6,1899.2,5.2652]
[1742325645052,10.52877,1899.6,1899.3,0.08384443]
[1742325645252,2.74199823,1899.4,1899.3,0.08384443]
[1742325646166,2.74199823,1899.4,1899.3,5.34893443]
[1742325646660,2.74199823,1899.4,1899.3,6.71035387]
[1742325648324,2.74199823,1899.4,1899.3,5.34893443]
[1742325648761,2.74199823,1899.4,1899.3,0.08384443]
[1742325649658,2.74199823,1899.4,1899.3,5.34893443]
[1742325650953,2.74199823,1899.6,1899.4,6.0164]
[1742325651255,2.74199823,1899.6,1899.5,0.08402508]
[1742325651825,2.74199823,1899.6,1899.3,5.26499]
[1742325652081,2.74199823,1899.4,1899.3,5.26499]
[1742325653836,2.74199823,1899.4,1899.3,9.693183]
[1742325654870,6.48716452,1899.8,1899.5,5.26454]
[1742325654871,2.74199823,1899.6,1899.5,5.26454]
[1742325655426,5.052,1899.8,1899.7,5.26398]
[1742325655637,2.74199823,1899.9,1899.7,10.52796]
[1742325656170,2.74199823,1899.9,1899.7,5.26398]
[1742325656370,2.74199823,1899.9,1899.7,5.26386]
[1742325656674,2.74199823,1899.9,1899.8,5.26371]
[1742325658242,2.74199823,1899.9,1899.8,5.34781941]
[1742325659275,2.74199823,1899.9,1899.8,0.08410941]
[1742325660181,8.00542823,1899.9,1899.8,0.08410941]
[1742325660360,2.74199823,1899.9,1899.6,10.52827]
[1742325660689,2.74199823,1899.7,1899.5,0.7804]
[1742325660975,2.74199823,1899.7,1899.5,5.26444]
[1742325661273,2.74199823,1899.7,1899.6,5.26426]
[1742325661456,0.7522,1899.9,1899.6,5.26426]
[1742325661646,2.74199823,1899.8,1899.6,5.26426]
[1742325661846,2.74199823,1899.8,1899.6,5.26425]
[1742325662578,2.74199823,1899.8,1899.6,10.52835]
[1742325663056,2.74199823,1899.8,1899.7,5.26398]
[1742325663383,2.74199823,1899.8,1899.6,5.2641]
[1742325663547,2.74199823,1899.8,1899.6,10.52822]
[1742325663747,2.74199823,1899.8,1899.6,5.2641]
[1742325663962,2.74199823,1899.8,1899.6,3.0]
[1742325664482,2.74199823,1899.8,1899.6,8.2642]
[1742325665163,2.74199823,1899.8,1899.6,3.0]
[1742325666082,2.74199823,1899.8,1899.6,8.26418]
[1742325666570,2.74199823,1900.0,1899.9,9.09263]
[1742325667294,2.74199823,1900.2,1900.1,5.26275]
[1742325668184,2.74199823,1900.2,1900.0,5.26308]
[1742325668686,8.00460823,1900.2,1899.9,9.09258]
[1742325668983,2.74199823,1900.0,1899.9,8.26343]
[1742325670559,2.74199823,1900.0,1899.9,9.09383]
[1742325670755,5.051,1900.3,1900.2,3.0]
[1742325670967,5.051,1900.3,1900.2,8.2626]
[1742325671170,2.74199823,1900.4,1900.2,3.0]
[1742325671654,2.74199823,1900.4,1900.2,8.26257]
[1742325671851,2.74199823,1900.4,1900.3,5.26232]
[1742325672086,2.74199823,1900.4,1900.2,13.52506]
[1742325672258,2.74199823,1900.4,1900.2,3.0]
[1742325672576,5.26232,1900.3,1900.2,3.0]
[1742325672778,2.74199823,1900.4,1900.2,3.0]
[1742325673084,8.00406823,1900.4,1900.2,3.0]
[1742325673286,8.00406823,1900.4,1900.3,0.08323041]
[1742325673766,2.74199823,1900.4,1900.3,0.08323041]
[1742325674163,8.00404823,1900.4,1900.3,0.08323041]
[1742325675766,8.81014823,1900.4,1900.3,0.08323041]
[1742325676083,5.26318,1900.0,1899.7,5.26385]
[1742325676284,2.74199823,1899.8,1899.6,5.26413]
[1742325676485,2.74199823,1899.8,1899.6,10.52829]
[1742325676660,2.74199823,1899.8,1899.7,3.0]
[1742325677599,2.74199823,1899.8,1899.3,0.8286]
[1742325677600,3.56989823,1899.8,1899.3,0.8286]
[1742325677780,2.74199823,1899.4,1899.3,5.26508]
[1742325677955,2.74199823,1899.4,1899.2,6.33086023]
[1742325678156,2.74199823,1899.4,1899.3,3.0]
[1742325678367,2.74199823,1899.4,1899.2,5.2651]
[1742325678884,8.00690823,1899.4,1899.1,0.8286]
[1742325679099,2.74199823,1899.2,1899.1,6.09423]
[1742325679305,2.74199823,1899.2,1899.1,9.09423]
[1742325679457,2.74199823,1899.2,1899.1,6.09423]
[1742325679664,2.74199823,1899.2,1899.1,9.09423]
[1742325679982,5.2644,1899.6,1899.2,5.26519]
[1742325680185,0.8279,1900.0,1899.9,5.26343]
[1742325680360,2.74199823,1900.0,1899.9,5.26343]
[1742325681400,2.74199823,1900.0,1899.8,10.52728]
[1742325681694,2.74199823,1900.0,1899.8,10.52722]
[1742325682071,2.74199823,1900.0,1899.9,5.26343]
[1742325682488,2.74199823,1900.0,1899.9,9.316131]
[1742325682865,2.74199823,1900.2,1900.1,5.26261]
[1742325683580,2.74199823,1900.2,1900.0,3.0]
[1742325683898,3.51929823,1900.2,1900.0,3.0]
[1742325684262,3.51929823,1900.2,1900.0,8.26314]
[1742325684489,3.51929823,1900.2,1900.0,8.26298]
[1742325684887,3.51929823,1900.2,1900.1,5.26288]
[1742325685211,3.51929823,1900.2,1900.0,13.52599]
[1742325685415,3.51929823,1900.2,1900.0,8.26298]
[1742325685914,3.51929823,1900.2,1900.1,5.26288]
[1742325686123,3.51929823,1900.2,1900.0,8.26298]
[1742325686323,3.87122805,1900.2,1899.7,6.07834]
[1742325686474,5.069,1900.1,1899.9,3.0]
[1742325686810,2.74199823,1900.0,1899.8,5.26362]
[1742325687017,2.74199823,1900.0,1899.8,10.52718]
[1742325687515,2.74199823,1900.0,1899.8,5.26356]
[1742325687694,2.74199823,1900.0,1899.8,10.52713]
[1742325687889,2.74199823,1900.0,1899.8,5.26356]
[1742325688095,5.26356,1899.8,1899.5,5.26437]
[1742325688298,2.74199823,1899.6,1899.5,8.26437]
[1742325688496,2.74199823,1899.8,1899.7,5.26371]
[1742325688816,2.74199823,1899.8,1899.7,9.691777]
[1742325689316,5.8599,1900.1,1899.9,5.26326]
[1742325689317,2.74199823,1900.0,1899.9,5.26326]
[1742325689733,5.069,1900.1,1900.0,5.26315]
[1742325689905,7.81099823,1900.1,1900.0,5.26315]
[1742325690113,2.74199823,1900.1,1900.0,8.26315]
[1742325690307,2.74199823,1900.3,1900.2,5.2625]
[1742325693235,2.74199823,1900.3,1900.2,8.2625]
[1742325695022,2.74199823,1900.3,1900.2,9.0297]
[1742325698763,2.74199823,1900.3,1900.2,8.2625]
[1742325702265,2.74199823,1900.5,1900.4,5.26205]
[1742325702755,1.16991603,1900.8,1900.6,5.26149]
[1742325702957,2.74199823,1900.7,1900.6,5.26149]
[1742325703532,2.74199823,1900.7,1900.5,5.26176]
[1742325703761,11.30438,1900.5,1900.1,5.26272]
[1742325703930,2.74199823,1900.2,1900.1,3.0]
[1742325704266,3.56379823,1900.2,1900.1,3.0]
[1742325704565,3.56379823,1900.2,1899.9,5.26332]
[1742325704870,2.74199823,1900.0,1899.9,5.26326]
[1742325708062,2.74199823,1900.0,1899.9,13.52658]
[1742325708374,2.74199823,1900.0,1899.9,15.705604]
[1742325709074,2.74199823,1900.0,1899.9,8.26326]
[1742325709270,2.74199823,1900.0,1899.9,3.0]
[1742325709477,3.7521,1899.9,1899.5,5.26451]
[1742325709673,2.74199823,1899.6,1899.5,5.26445]
[1742325710274,2.74199823,1899.6,1899.5,8.26445]
[1742325710473,2.74199823,1899.6,1899.5,9.317365]
[1742325710793,2.74199823,1899.8,1899.7,5.26398]
[1742325712464,2.74199823,1899.8,1899.6,5.26403]
[1742325713074,2.74199823,1899.8,1899.6,10.52815]
[1742325714363,2.74199823,1899.8,1899.7,5.26398]
[1742325715678,2.74199823,1899.8,1899.6,10.52816]
[1742325715976,2.74199823,1899.8,1899.7,5.26398]
[1742325716175,3.51299823,1899.8,1899.6,5.26403]
[1742325716376,8.77671823,1899.8,1899.5,8.26452]
[1742325716676,2.74199823,1899.6,1899.5,8.26452]
[1742325716848,2.74199823,1899.6,1899.5,3.0]
[1742325718244,2.74199823,1899.6,1899.5,3.06462575]
[1742325718581,2.74199823,1899.6,1899.5,0.06462575]
[1742325718767,8.00625823,1899.6,1899.5,0.06462575]
[1742325719085,13.05725823,1899.6,1899.5,0.06462575]
[1742325719289,19.08180823,1899.6,1899.2,5.26527]
[1742325719452,2.74199823,1899.3,1899.2,8.26527]
[1742325720181,2.74199823,1899.5,1899.4,5.26482]
[1742325721159,2.74199823,1899.5,1899.3,5.26482]
[1742325721356,2.74199823,1899.5,1899.4,5.26482]
[1742325722282,2.74199823,1899.7,1899.6,5.26426]
[1742325723286,2.74199823,1899.7,1899.5,9.04684]
[1742325723442,2.74199823,1899.7,1899.6,5.26426]
[1742325723642,2.74199823,1899.7,1899.5,8.26444]
[1742325723843,2.74199823,1899.7,1899.5,13.52884]
[1742325724180,2.74199823,1899.7,1899.5,8.2644]
[1742325724482,2.74199823,1899.7,1899.5,13.52879]
[1742325724677,2.74199823,1899.7,1899.5,8.26439]
[1742325724853,2.74199823,1899.7,1899.5,8.26432]
[1742325725178,2.74199823,1899.7,1899.5,13.52876]
[1742325726380,2.74199823,1899.7,1899.5,8.26432]
[1742325726581,2.74199823,1899.7,1899.6,5.26426]
[1742325726785,5.051,1900.0,1899.8,5.26357]
[1742325727101,2.74199823,1899.9,1899.8,5.26357]
[1742325727380,2.74199823,1900.1,1900.0,5.26313]
[1742325728785,2.74199823,1900.1,1899.9,6.03182]
[1742325728950,3.50509823,1900.1,1899.9,3.0]
[1742325729649,8.76808823,1900.1,1899.9,3.0]
[1742325729846,3.0,1899.9,1899.8,3.0]
[1742325730087,2.74199823,1899.9,1899.8,3.0]
[1742325730655,2.74199823,1899.9,1899.5,5.26443]
[1742325730868,0.7697,1899.8,1899.7,3.0]
[1742325732197,0.7697,1899.8,1899.6,5.26414]
[1742325732398,2.74199823,1899.7,1899.6,8.26414]
[1742325732602,7.79599823,1899.7,1899.5,3.0]
[1742325732781,13.06009823,1899.7,1899.5,3.0]
[1742325733195,13.06009823,1899.7,1899.6,0.05814317]
[1742325733502,13.85709823,1899.7,1899.3,8.26509]
[1742325733700,2.74199823,1899.4,1899.3,8.26509]
[1742325733905,16.37927,1899.7,1899.4,5.26458]
[1742325733906,2.74199823,1899.6,1899.4,5.26458]
[1742325734069,2.74199823,1899.6,1899.5,5.26454]
[1742325735005,2.74199823,1899.6,1899.4,6.091038]
[1742325735204,2.74199823,1899.6,1899.5,5.26454]
[1742325736779,8.00632823,1899.6,1899.3,8.26489]
[1742325736988,2.74199823,1899.4,1899.3,8.26489]
[1742325738803,5.055,1899.7,1899.3,8.26489]
[1742325738804,5.055,1899.7,1899.6,5.26426]
[1742325739010,7.79699823,1899.7,1899.6,5.26426]
[1742325739185,7.79699823,1899.7,1899.5,11.30513]
[1742325739386,7.79699823,1899.7,1899.5,6.04059]
[1742325739604,7.79699823,1899.7,1899.5,8.26439]
[1742325740178,7.79699823,1899.7,1899.5,8.26438]
[1742325740910,2.27271,1899.5,1899.4,3.0]
[1742325741206,2.74199823,1899.5,1899.2,5.26534]
[1742325741413,2.74199823,1899.3,1899.2,8.26534]
[1742325742676,2.74199823,1899.3,1899.2,3.0]
[1742325743274,8.00708823,1899.3,1899.2,3.0]
[1742325743578,2.74199823,1899.3,1899.2,3.0]
[1742325744117,3.0,1899.2,1899.1,3.0]
[1742325744317,8.00710823,1899.3,1899.1,3.0]
[1742325744816,5.052,1899.2,1899.1,3.0]
[1742325745202,10.31742,1899.2,1899.0,3.0]
[1742325745516,2.74199823,1899.1,1899.0,3.0]
[1742325745691,2.74199823,1899.1,1898.9,10.53224]
[1742325746017,2.74199823,1899.1,1898.9,5.26604]
[1742325746820,5.26619,1899.0,1898.6,5.26686]
[1742325746988,2.74199823,1898.7,1898.6,5.26686]
[1742325747323,2.74199823,1898.7,1898.4,5.26758]
[1742325747483,2.74199823,1898.5,1898.4,5.26758]
[1742325747683,2.74199823,1898.5,1898.4,8.26758]
[1742325748096,2.74199823,1898.5,1898.4,9.75052886]
[1742325752011,2.74199823,1898.3,1898.2,0.05237382]
[1742325752393,2.74199823,1898.3,1898.2,5.26814]
[1742325752740,2.74199823,1898.3,1898.2,5.32057374]
[1742325752897,2.74199823,1898.3,1898.2,8.32057374]
[1742325753298,2.74199823,1898.3,1898.2,10.46046211]
[1742325754418,2.74199823,1898.3,1898.2,9.10157374]
[1742325755843,2.74199823,1898.3,1898.2,8.32057374]
[1742325756638,2.74199823,1898.3,1898.2,3.05243374]
[1742325756806,2.74199823,1898.3,1898.2,8.32057374]
[1742325758328,2.74199823,1898.3,1898.2,3.05243374]
[1742325758517,2.74199823,1898.3,1898.2,0.05243374]
[1742325758725,2.74199823,1898.3,1898.0,9.08444]
[1742325758900,2.74199823,1898.1,1898.0,8.26864]
[1742325761337,2.74199823,1898.1,1897.9,5.2688]
[1742325761501,2.74199823,1898.1,1898.0,3.0]
[1742325761828,2.74199823,1898.1,1897.9,5.2688]
[1742325762029,2.74199823,1898.1,1897.8,5.26914]
[1742325762198,2.74199823,1897.9,1897.7,5.26941]
[1742325762395,2.74199823,1897.9,1897.8,5.26925]
[1742325762596,2.74199823,1897.9,1897.8,8.26925]
[1742325763237,8.61389823,1898.1,1897.9,5.26894]
[1742325763929,8.61389823,1898.1,1898.0,0.05214182]
[1742325764337,7.80199823,1898.1,1898.0,6.13104182]
[1742325764501,7.80199823,1898.1,1898.0,5.32084182]
[1742325764699,7.80199823,1898.1,1898.0,0.05214182]
[1742325765635,3.55389823,1898.6,1898.4,5.26742]
[1742325765836,2.74199823,1898.6,1898.3,5.26778]
[1742325766036,2.74199823,1898.6,1898.4,5.26756]
[1742325766336,2.74199823,1898.6,1898.5,5.26731]
[1742325766524,2.74199823,1898.6,1898.5,6.02651]
[1742325766728,2.74199823,1898.6,1898.5,5.26731]
[1742325767039,2.74199823,1898.6,1898.5,0.05214182]
[1742325767407,8.78322823,1898.6,1898.3,3.0]
[1742325767640,2.74199823,1898.4,1898.3,3.0]
[1742325768137,2.74199823,1898.4,1898.2,3.0]
[1742325768569,2.74199823,1898.4,1898.2,8.26814]
[1742325768850,8.00961823,1898.4,1898.2,3.0]
[1742325769041,0.7738,1898.3,1898.2,3.0]
[1742325769446,0.7717061,1898.3,1898.2,3.0]
[1742325770456,3.0,1898.2,1898.1,5.26821]
[1742325770619,2.74199823,1898.2,1898.1,10.53645]
[1742325770820,5.069,1898.3,1898.2,5.26814]
[1742325771067,5.069,1898.3,1898.2,6.09614]
[1742325771222,2.74199823,1898.4,1898.3,5.26787]
[1742325773920,2.74199823,1898.6,1898.5,5.26731]
[1742325774438,7.81899823,1898.6,1898.5,5.26731]
[1742325775320,2.74199823,1898.6,1898.5,5.26731]
[1742325775672,2.74199823,1898.9,1898.8,5.26648]
[1742325776170,2.74199823,1899.1,1899.0,5.26592]
[1742325778265,2.74199823,1899.1,1899.0,5.31597204]
[1742325778981,7.82499823,1899.3,1899.2,5.26537]
[1742325779263,22.92122838,1899.5,1899.4,5.26482]
[1742325779449,8.23222661,1899.5,1899.4,5.26482]
[1742325779853,8.23222661,1899.5,1899.4,5.31487204]
[1742325780374,1.09064311,1899.7,1899.6,5.26426]
[1742325780375,2.74199823,1899.7,1899.6,5.26426]
[1742325780860,2.74199823,1899.7,1899.6,5.31431204]
[1742325781268,8.00597823,1899.7,1899.6,0.05005204]
[1742325781434,8.75637823,1899.7,1899.6,0.05005204]
[1742325781633,5.26455,1899.5,1899.1,8.26564]
[1742325781871,2.74199823,1899.2,1899.1,5.26564]
[1742325782965,8.00756823,1899.2,1898.9,5.2661]
[1742325783164,2.74199823,1899.0,1898.8,5.26625]
[1742325784164,2.74199823,1899.0,1898.9,5.2662]
[1742325784363,2.74199823,1899.2,1899.0,5.26575]
[1742325784579,2.74199823,1899.2,1899.1,5.26565]
[1742325785130,3.41851093,1899.2,1899.1,5.26565]
[1742325789469,3.41782914,1899.3,1899.2,5.26527]
[1742325790370,3.41782914,1899.3,1899.2,6.09087]
[1742325791348,3.41782914,1899.5,1899.4,5.26482]
[1742325791544,5.083,1899.6,1899.5,5.26454]
[1742325791747,3.41782914,1899.7,1899.5,5.26454]
[1742325792076,5.26433,1899.6,1899.4,3.0]
[1742325792279,0.7826,1899.4,1899.1,5.26556]
[1742325792477,0.7826,1899.4,1899.2,8.26528]
[1742325792640,5.8846,1899.4,1899.2,8.26528]
[1742325793262,5.8846,1899.4,1899.2,8.26517]
[1742325793870,5.8846,1899.4,1899.2,13.53039]
[1742325794175,5.8846,1899.4,1899.3,5.26509]
[1742325794469,5.8846,1899.4,1899.2,8.26517]
[1742325794847,3.41782914,1899.3,1899.2,3.0]
[1742325795372,3.0,1899.2,1899.0,3.0]
[1742325795674,3.41782914,1899.1,1898.9,5.26605]
[1742325796575,3.41782914,1899.1,1899.0,5.26592]
[1742325797565,3.41782914,1899.1,1898.9,5.26603]
[1742325798164,3.82302685,1899.1,1898.8,5.26637]
[1742325798345,3.41782914,1898.9,1898.8,8.26637]
[1742325800674,3.41782914,1898.9,1898.8,3.0]
[1742325801752,3.41782914,1898.9,1898.7,3.0]
[1742325801967,8.68416914,1898.9,1898.6,5.26694]
[1742325802284,3.41782914,1898.7,1898.5,5.26715]
[1742325802649,3.41782914,1898.7,1898.5,10.53436]
[1742325802970,9.45347914,1898.7,1898.3,5.26776]
[1742325803176,3.41782914,1898.5,1898.3,5.26776]
[1742325803673,3.41782914,1898.5,1898.4,5.26759]
[1742325805064,5.089,1898.6,1898.5,5.26731]
[1742325805276,8.50482914,1898.9,1898.7,5.26651]
[1742325806159,8.50482914,1898.9,1898.8,5.26648]
[1742325806354,8.50482914,1898.9,1898.7,5.26651]
[1742325806998,8.90656815,1898.9,1898.7,10.53314]
[1742325807196,8.90656815,1898.9,1898.7,5.26651]
[1742325807493,3.81956815,1898.9,1898.7,5.26651]
[1742325807873,3.81956815,1898.9,1898.7,10.53313]
[1742325808077,3.81956815,1898.9,1898.7,5.26651]
[1742325808692,0.7514,1899.3,1899.0,5.2658]
[1742325808902,3.41782914,1899.1,1899.0,10.53156]
[1742325809066,3.8126744,1899.1,1899.0,10.53156]
[1742325809729,3.41782914,1899.3,1899.1,10.53091]
[1742325810074,3.41782914,1899.3,1899.2,5.26537]
[1742325813003,3.41782914,1899.3,1899.1,5.26538]
[1742325813172,3.41782914,1899.3,1899.0,6.07598]
[1742325813366,3.41782914,1899.1,1898.9,5.26606]
[1742325813570,3.41782914,1899.1,1899.0,5.26592]
[1742325814011,3.41782914,1899.1,1898.9,10.53215]
[1742325814305,3.41782914,1899.1,1899.0,5.26592]
[1742325815413,3.41782914,1899.1,1898.9,5.26606]
[1742325815591,3.41782914,1899.1,1898.9,10.53217]
[1742325815797,3.41782914,1899.1,1899.0,5.26592]
[1742325816107,3.41782914,1899.1,1898.9,5.26605]
[1742325816507,3.41782914,1899.1,1898.9,10.53211]
[1742325816808,3.41782914,1899.1,1898.9,5.26605]
[1742325817186,3.41782914,1899.1,1899.0,5.26592]
[1742325818487,3.41782914,1899.1,1899.0,6.319117]
[1742325819191,5.074,1899.2,1899.1,5.26565]
[1742325821000,3.41782914,1899.3,1899.2,5.26537]
[1742325821202,3.41782914,1899.3,1899.1,5.26553]
[1742325821401,9.51459914,1899.3,1899.0,3.0]
[1742325821606,3.41782914,1899.1,1899.0,10.53155]
[1742325821905,3.41782914,1899.1,1899.0,5.26576]
[1742325825895,3.41782914,1899.1,1898.9,5.26609]
[1742325826514,6.15509406,1899.0,1898.6,11.40692]
[1742325826690,3.41782914,1898.7,1898.6,5.26692]
[1742325826895,3.41782914,1898.7,1898.6,8.26692]
[1742325827124,3.41782914,1898.7,1898.6,10.314071]
[1742325827625,3.41782914,1898.7,1898.5,5.26719]
[1742325828005,3.41782914,1898.7,1898.6,3.0]
[1742325828405,3.41782914,1898.7,1898.5,5.26719]
[1742325828606,3.41782914,1898.7,1898.6,3.0]
[1742325828937,3.41782914,1898.7,1898.5,5.26719]
[1742325829500,3.41782914,1898.7,1898.5,5.26717]
[1742325829732,3.41782914,1898.7,1898.6,5.26703]
[1742325831444,11.16717,1899.0,1898.7,5.26661]
[1742325831445,3.41782914,1898.9,1898.7,5.26661]
[1742325832643,3.41782914,1898.9,1898.7,10.53322]
[1742325833248,3.41782914,1898.9,1898.8,5.26648]
[1742325834642,3.41782914,1898.9,1898.7,5.26661]
[1742325835003,8.68416914,1898.9,1898.6,5.26699]
[1742325835203,3.41782914,1898.7,1898.6,5.26699]
[1742325835447,3.41782914,1898.7,1898.5,5.793937]
[1742325835605,3.41782914,1898.7,1898.5,5.26722]
[1742325838221,3.41782914,1898.7,1898.5,10.53437]
[1742325838418,3.41782914,1898.7,1898.5,5.26715]
[1742325838834,3.41782914,1898.7,1898.5,10.53436]
[1742325839233,3.41782914,1898.7,1898.5,10.53435]
[1742325839424,3.41782914,1898.7,1898.6,5.26703]
[1742325840317,0.39685955,1898.9,1898.7,5.2665]
[1742325840517,3.41782914,1898.9,1898.6,5.26695]
[1742325840712,3.41782914,1898.9,1898.6,10.53391]
[1742325840713,8.47882914,1898.9,1898.6,10.53391]
[1742325840914,3.81039952,1898.9,1898.7,5.26657]
[1742325841112,16.41113,1899.3,1898.9,5.26595]
[1742325841354,3.41782914,1899.1,1898.9,5.26595]
[1742325841541,3.41782914,1899.1,1899.0,5.26592]
[1742325841953,3.41782914,1899.1,1899.0,6.09322]
[1742325842353,3.41782914,1899.3,1899.2,5.26521]
[1742325843211,3.41782914,1899.3,1899.1,5.26554]
[1742325844044,3.41782914,1899.3,1899.1,3.0]
[1742325844243,3.41782914,1899.3,1899.1,8.26562]
[1742325844472,3.41782914,1899.3,1899.1,13.53115]
[1742325844780,3.41782914,1899.3,1899.2,5.26537]
[1742325846655,3.82018505,1899.3,1899.2,5.26537]
[1742325848441,3.41782914,1899.3,1899.2,5.26537]
[1742325848649,3.41782914,1899.3,1899.1,8.26553]
[1742325849682,3.41782914,1899.3,1899.1,3.0]
[1742325850181,8.68308914,1899.3,1899.1,3.0]
[1742325850683,0.768,1899.2,1898.8,0.7763]
[1742325850886,3.41782914,1898.9,1898.7,11.40666]
[1742325851102,3.41782914,1898.9,1898.7,6.14]
[1742325851399,4.23052914,1898.9,1898.7,6.14]
[1742325851701,4.23052914,1898.9,1898.7,3.0]
[1742325852005,5.054,1899.0,1898.8,5.26622]
[1742325852167,8.47182914,1899.0,1898.9,5.2662]
[1742325853800,5.054,1899.0,1898.9,5.2662]
[1742325855380,8.47182914,1899.0,1898.9,5.2662]
[1742325855804,3.41782914,1899.0,1898.9,5.2662]
[1742325855986,3.41782914,1899.0,1898.9,6.319442]
[1742325856188,3.41782914,1899.0,1898.9,6.319402]
[1742325856494,3.41782914,1899.0,1898.9,5.2662]
[1742325857600,3.41782914,1899.2,1899.1,5.26557]
[1742325859130,3.41782914,1899.2,1898.9,10.53222]
[1742325859131,4.23572914,1899.2,1898.9,10.53222]
[1742325859298,3.41782914,1899.0,1898.9,10.53222]
[1742325860415,5.44674966,1899.3,1899.1,5.26564]
[1742325860598,3.41782914,1899.2,1899.1,5.26564]
[1742325862123,8.8725788,1899.3,1899.2,5.26537]
[1742325862429,3.8095788,1899.3,1899.2,5.26537]
[1742325862590,3.41782914,1899.3,1899.2,5.26537]
[1742325865989,5.061,1899.5,1899.3,5.26494]
[1742325866335,3.41782914,1899.4,1899.3,10.52987]
[1742325866624,3.41782914,1899.4,1899.3,11.582857]
[1742325868419,3.41782914,1899.4,1899.3,6.317917]
[1742325869097,3.41782914,1899.4,1899.2,5.26521]
[1742325869297,8.68265914,1899.4,1899.1,5.26554]
[1742325869509,3.41782914,1899.2,1899.1,8.26554]
[1742325870099,3.41782914,1899.2,1899.1,3.0]
[1742325870429,3.41782914,1899.2,1899.1,8.26565]
[1742325871032,3.41782914,1899.4,1899.2,5.26537]
[1742325871227,4.21062914,1899.4,1899.2,5.26537]
[1742325872596,4.21062914,1899.4,1899.1,13.53118]
[1742325872817,3.41782914,1899.2,1899.1,13.53118]
[1742325876331,3.41782914,1899.2,1899.1,8.26553]
[1742325880211,3.41782914,1899.2,1899.1,5.26553]
[1742325881358,3.41782914,1899.2,1899.1,7.12227]
[1742325881517,3.41782914,1899.4,1899.1,12.38775]
[1742325881718,3.41782914,1899.4,1899.2,5.26536]
[1742325881918,5.054,1899.3,1899.1,11.33458]
[1742325882250,3.41782914,1899.4,1899.2,5.26537]
[1742325882455,5.054,1899.5,1899.4,5.26479]
[1742325882752,8.47182914,1899.5,1899.4,5.26479]
[1742325884240,8.47182914,1899.5,1899.3,5.26491]
[1742325886551,8.47182914,1899.5,1899.3,10.52983]
[1742325886756,8.47182914,1899.5,1899.4,5.26482]
[1742325886963,8.47182914,1899.5,1899.3,5.26491]
[1742325888153,8.47182914,1899.5,1899.3,10.52984]
[1742325888320,8.47182914,1899.5,1899.3,5.26491]
[1742325888727,0.8246,1899.4,1899.1,5.2654]
[1742325888928,0.8246,1899.4,1899.2,5.26536]
[1742325888929,3.41782914,1899.3,1899.2,5.26536]
[1742325889633,3.41782914,1899.3,1899.1,5.2654]
[1742325889829,8.68293914,1899.3,1899.0,8.26581]
[1742325890024,3.41782914,1899.1,1899.0,8.26581]
[1742325890868,3.41782914,1899.1,1899.0,5.26592]
[1742325892401,3.41782914,1899.1,1898.9,10.53212]
[1742325892731,3.41782914,1899.1,1899.0,5.26592]
[1742325893777,3.41782914,1899.1,1898.9,5.26606]
[1742325893947,4.21782914,1899.1,1898.9,5.26606]
[1742325894273,9.27182914,1899.1,1898.9,5.26606]
[1742325894782,14.93274457,1899.1,1898.8,8.26637]
[1742325894979,3.41782914,1898.9,1898.8,8.26637]
[1742325895875,8.86707457,1899.1,1898.9,5.26604]
[1742325896267,8.86707457,1899.1,1899.0,5.26592]
[1742325896582,4.17892914,1899.3,1898.8,9.07506]
[1742325896786,3.41782914,1899.3,1899.2,5.26535]
[1742325900159,3.41782914,1899.5,1899.4,5.26473]
[1742325900356,0.8125,1899.7,1899.4,5.26469]
[1742325900357,9.28432914,1899.7,1899.4,5.26469]
[1742325900586,9.28432914,1899.7,1899.4,10.52932]
[1742325900762,3.41782914,1899.5,1899.4,5.26463]
[1742325900961,3.41782914,1899.5,1899.4,6.317599]
[1742325906294,3.41782914,1899.5,1899.4,5.26463]
[1742325906664,3.41782914,1899.5,1899.3,5.26506]
[1742325908490,3.41782914,1899.5,1899.3,5.26497]
[1742325909488,3.41782914,1899.5,1899.3,10.5299]
[1742325909650,3.41782914,1899.5,1899.2,11.40532]
[1742325909855,6.27235384,1899.7,1899.2,14.40532]
[1742325909856,3.41782914,1899.3,1899.2,14.40532]
[1742325910255,3.41782914,1899.3,1899.2,9.14]
[1742325910456,14.676991,1899.2,1898.8,5.26633]
[1742325910669,3.41782914,1898.9,1898.8,5.26633]
[1742325911070,3.41782914,1898.9,1898.8,8.26633]
[1742325911466,4.19012914,1899.1,1898.8,10.53268]
[1742325911696,4.19012914,1899.1,1898.9,5.26605]
[1742325912261,3.41782914,1899.1,1899.0,5.26592]
[1742325912492,8.47082914,1899.3,1899.2,5.26537]
[1742325912692,8.47082914,1899.3,1899.1,6.0899]
[1742325913397,8.47082914,1899.3,1899.1,5.2656]